bitfinex/quotes_BTCUSD_20250903
["timestamp","ask_amount","ask_price","bid_price","bid_amount"]
[1756926599336,1.27655186,112090.0,112080.0,0.00012381]
[1756926600529,1.18463587,112090.0,112080.0,0.00012381]
[1756926600737,1.18463587,112090.0,112080.0,0.00032381]
[1756926601116,1.18463587,112090.0,112080.0,0.00012381]
[1756926601694,1.33410145,112090.0,112080.0,0.00012381]
[1756926602417,1.18474145,112090.0,112080.0,0.00012381]
[1756926602625,1.27655186,112090.0,112080.0,0.00012381]
[1756926605415,1.12719186,112090.0,112080.0,0.00012381]
[1756926605633,1.27659186,112090.0,112080.0,0.00012381]
[1756926608113,1.75836934,112090.0,112080.0,0.00012381]
[1756926608324,1.89827835,112090.0,112080.0,0.00012381]
[1756926609184,0.51847581,112060.0,112050.0,0.07354631]
[1756926609421,1.24152928,112060.0,112050.0,0.07354631]
[1756926609662,1.24152928,112060.0,112030.0,0.13778024]
[1756926609663,0.17850767,112040.0,112030.0,0.13778024]
[1756926609840,0.81504162,112040.0,112030.0,0.13798024]
[1756926610053,0.81281515,112040.0,112030.0,0.13798024]
[1756926610270,1.16401871,112040.0,112030.0,0.08537275]
[1756926610484,1.19085121,112040.0,112030.0,0.08517275]
[1756926610698,1.19085121,112040.0,112030.0,0.06423393]
[1756926610919,1.19085121,112040.0,112030.0,0.06623393]
[1756926611142,1.19085121,112040.0,112030.0,0.08731387]
[1756926611362,1.19085121,112040.0,112030.0,0.00314112]
[1756926611780,1.19085121,112040.0,112030.0,0.02407994]
[1756926612007,1.67262869,112040.0,112030.0,0.02407994]
[1756926612224,1.67262869,112040.0,112030.0,0.02207994]
[1756926612225,1.19085121,112040.0,112030.0,0.02207994]
[1756926612668,1.67262869,112040.0,112030.0,0.02407994]
[1756926612877,1.19085121,112040.0,112030.0,0.02407994]
[1756926613161,1.04145121,112040.0,112030.0,0.02407994]
[1756926613369,1.19085121,112040.0,112030.0,0.02307994]
[1756926613780,1.19085121,112040.0,112030.0,0.02407994]
[1756926616217,1.67262869,112040.0,112030.0,0.02407994]
[1756926617362,1.19085121,112040.0,112030.0,0.02407994]
[1756926619580,1.43309407,112040.0,112030.0,0.02407994]
[1756926626074,1.52501006,112040.0,112030.0,0.00314112]
[1756926626282,1.91434666,112040.0,112030.0,0.00314112]
[1756926626927,1.91434666,112040.0,112030.0,0.00014112]
[1756926627931,1.91534666,112040.0,112030.0,0.00014112]
[1756926628705,1.91634666,112040.0,112030.0,0.00014112]
[1756926631018,1.98498666,112040.0,112030.0,0.00014112]
[1756926631213,2.0261119,112040.0,112030.0,0.00014112]
[1756926632369,0.72222972,112040.0,112030.0,0.00014112]
[1756926632578,0.70593373,112040.0,112030.0,0.02127994]
[1756926632747,1.0679439,112040.0,112030.0,0.02127994]
[1756926632946,1.0679439,112040.0,112030.0,0.19980354]
[1756926633262,0.9185039,112040.0,112030.0,0.19993354]
[1756926633470,1.0679439,112040.0,112030.0,0.19980354]
[1756926634182,1.0669439,112040.0,112030.0,0.19980354]
[1756926634645,1.0659439,112040.0,112030.0,0.19980354]
[1756926634974,0.55449373,112040.0,112030.0,0.19980354]
[1756926635193,0.37598606,112040.0,112030.0,0.19993354]
[1756926635408,0.3668325,112040.0,112030.0,0.56194371]
[1756926635636,0.69880977,112060.0,112050.0,0.02093882]
[1756926635899,0.54940977,112060.0,112050.0,0.02113882]
[1756926636135,1.06876934,112060.0,112050.0,0.02113882]
[1756926636565,1.43077951,112060.0,112050.0,0.02113882]
[1756926636781,1.44054656,112060.0,112050.0,0.02113882]
[1756926637346,1.07853639,112060.0,112050.0,0.02113882]
[1756926637494,1.44054656,112060.0,112050.0,0.02113882]
[1756926637705,1.07540639,112060.0,112050.0,0.02113882]
[1756926637905,1.07640639,112060.0,112050.0,0.02113882]
[1756926638788,0.92700639,112060.0,112050.0,0.02113882]
[1756926638948,0.56499622,112060.0,112050.0,0.19963056]
[1756926639155,0.37759662,112060.0,112050.0,0.19963056]
[1756926639438,0.37759662,112060.0,112050.0,0.56177073]
[1756926639598,0.35076705,112060.0,112050.0,0.56177073]
[1756926639808,0.35076705,112060.0,112050.0,0.19976056]
[1756926640048,0.35076705,112060.0,112050.0,0.56177073]
[1756926640262,0.52924286,112060.0,112050.0,0.19963056]
[1756926640462,0.52924286,112060.0,112050.0,0.34903056]
[1756926642586,0.89125303,112060.0,112050.0,0.34903056]
[1756926643531,0.89627303,112060.0,112050.0,0.02093882]
[1756926643672,1.2582832,112060.0,112050.0,0.02093882]
[1756926644101,0.89627303,112060.0,112050.0,0.02093882]
[1756926644495,0.89627303,112060.0,112050.0,0.02113882]
[1756926644909,0.53426286,112060.0,112050.0,0.19963056]
[1756926645112,0.89125303,112060.0,112050.0,0.19963056]
[1756926645629,1.04567303,112060.0,112050.0,0.02113882]
[1756926646062,1.04567303,112060.0,112050.0,0.02093882]
[1756926647926,1.04567303,112060.0,112050.0,0.19943056]
[1756926648808,1.04567303,112060.0,112050.0,0.19963056]
[1756926649028,1.04567303,112060.0,112050.0,0.19943056]
[1756926649239,0.68366286,112060.0,112050.0,0.19943056]
[1756926649650,1.04567303,112060.0,112050.0,0.19943056]
[1756926649867,0.89627303,112060.0,112050.0,0.19943056]
[1756926650106,1.04563303,112060.0,112050.0,0.19963056]
[1756926650723,0.89627303,112060.0,112050.0,0.02093882]
[1756926650975,0.89627303,112060.0,112050.0,0.19943056]
[1756926652567,1.04563303,112060.0,112050.0,0.02093882]
[1756926653000,0.89627303,112060.0,112050.0,0.02093882]
[1756926653208,1.04563303,112060.0,112050.0,0.02093882]
[1756926653710,0.89627303,112060.0,112050.0,0.02093882]
[1756926653925,1.04563303,112060.0,112050.0,0.19943056]
[1756926655648,0.89627303,112060.0,112050.0,0.19943056]
[1756926656314,0.89627303,112060.0,112050.0,0.02093882]
[1756926656555,1.04563303,112060.0,112050.0,0.02093882]
[1756926656751,1.04563303,112060.0,112050.0,0.17029882]
[1756926659946,1.04463303,112060.0,112050.0,0.17029882]
[1756926660422,0.89527303,112060.0,112050.0,0.17029882]
[1756926661367,0.89627303,112060.0,112050.0,0.17029882]
[1756926662311,0.89527303,112060.0,112050.0,0.17029882]
[1756926662495,0.89527303,112060.0,112050.0,0.17049882]
[1756926662899,0.89527303,112060.0,112050.0,0.17029882]
[1756926663037,0.53326286,112060.0,112050.0,0.17029882]
[1756926663241,0.89527303,112060.0,112050.0,0.17029882]
[1756926664361,0.89527303,112060.0,112050.0,0.02093882]
[1756926664561,1.04463303,112060.0,112050.0,0.02093882]
[1756926664767,1.4066432,112060.0,112050.0,0.17029882]
[1756926665354,1.4066432,112060.0,112050.0,0.02093882]
[1756926665933,1.43347199,112060.0,112050.0,0.02093882]
[1756926669243,1.45661199,112060.0,112050.0,0.02093882]
[1756926670241,0.51850767,112040.0,112030.0,0.14946112]
[1756926670445,1.24770801,112040.0,112030.0,0.02107994]
[1756926671253,0.88569784,112040.0,112030.0,0.02107994]
[1756926671581,0.88569784,112040.0,112030.0,0.02307994]
[1756926672931,1.24770801,112040.0,112030.0,0.02307994]
[1756926673138,0.88569784,112040.0,112030.0,0.02307994]
[1756926673380,1.39702801,112040.0,112030.0,0.02307994]
[1756926673828,1.42386148,112040.0,112030.0,0.02307994]
[1756926674267,0.55052114,112040.0,112030.0,0.02307994]
[1756926674479,0.37201347,112040.0,112030.0,0.20160354]
[1756926674686,0.37201347,112040.0,112030.0,0.56381371]
[1756926674687,0.52171767,112040.0,112030.0,0.56381371]
[1756926674895,0.88569784,112040.0,112030.0,0.35112354]
[1756926675113,0.88569784,112040.0,112030.0,0.17059994]
[1756926675322,0.88569784,112040.0,112030.0,0.34912354]
[1756926675531,0.88569784,112040.0,112030.0,0.35012354]
[1756926676480,0.88569784,112040.0,112030.0,0.17159994]
[1756926676880,0.88569784,112040.0,112030.0,0.35012354]
[1756926677885,0.88569784,112040.0,112030.0,0.34992354]
[1756926678253,0.88569784,112040.0,112030.0,0.17139994]
[1756926679152,0.88569784,112040.0,112030.0,0.34992354]
[1756926679367,1.24770801,112040.0,112030.0,0.17139994]
[1756926679578,1.00623945,112040.0,112030.0,0.17139994]
[1756926679787,1.03307214,112040.0,112030.0,0.17139994]
[1756926680004,1.03307214,112040.0,112030.0,0.35215508]
[1756926680212,0.34,112040.0,112030.0,0.35012354]
[1756926680833,0.51850767,112040.0,112030.0,0.35012354]
[1756926681004,0.34,112040.0,112030.0,0.35012354]
[1756926681904,0.51850767,112040.0,112030.0,0.35012354]
[1756926682092,0.52368767,112040.0,112030.0,0.35012354]
[1756926682601,0.52368767,112040.0,112030.0,0.17139994]
[1756926682799,1.00623945,112040.0,112030.0,0.34992354]
[1756926683013,1.00623945,112040.0,112030.0,0.17139994]
[1756926683219,1.00623945,112040.0,112030.0,0.34992354]
[1756926683620,1.00623945,112040.0,112030.0,0.02207994]
[1756926683876,1.00623945,112040.0,112030.0,0.17139994]
[1756926684099,1.00623945,112040.0,112030.0,0.34992354]
[1756926686008,0.52368767,112040.0,112030.0,0.34992354]
[1756926687355,1.15555945,112040.0,112030.0,0.00114112]
[1756926687728,1.00623945,112040.0,112030.0,0.02207994]
[1756926687932,1.15555945,112040.0,112030.0,0.02207994]
[1756926688295,1.18239399,112040.0,112030.0,0.02207994]
[1756926689893,0.69984221,112040.0,112030.0,0.02207994]
[1756926690086,1.18239399,112040.0,112030.0,0.02207994]
[1756926695400,0.55052221,112040.0,112030.0,0.02207994]
[1756926695602,1.03307399,112040.0,112030.0,0.02207994]
[1756926695749,1.18239399,112040.0,112030.0,0.02207994]
[1756926696175,1.18239399,112040.0,112030.0,0.20060354]
[1756926696375,0.02683454,112040.0,112030.0,0.68335532]
[1756926696606,0.67971843,112060.0,112050.0,0.02093882]
[1756926696607,0.34969665,112060.0,112050.0,0.02093882]
[1756926696813,1.20104794,112060.0,112050.0,0.19943056]
[1756926697385,1.20104794,112060.0,112050.0,0.02093882]
[1756926699143,1.05172794,112060.0,112050.0,0.02093882]
[1756926699344,1.20204794,112060.0,112050.0,0.02093882]
[1756926704953,1.20104794,112060.0,112050.0,0.02093882]
[1756926711395,0.71849616,112060.0,112050.0,0.02093882]
[1756926711633,1.20104794,112060.0,112050.0,0.02093882]
[1756926714679,1.05172794,112060.0,112050.0,0.02093882]
[1756926715097,1.20104794,112060.0,112050.0,0.02093882]
[1756926719552,1.05172794,112060.0,112050.0,0.02093882]
[1756926719905,1.19903794,112060.0,112050.0,0.02113882]
[1756926720459,1.20118794,112060.0,112050.0,0.02093882]
[1756926720971,1.20018794,112060.0,112050.0,0.02093882]
[1756926721219,1.20118794,112060.0,112050.0,0.02093882]
[1756926721592,1.20118794,112060.0,112050.0,0.02193882]
[1756926721824,1.05090794,112060.0,112050.0,0.02193882]
[1756926722003,1.20018794,112060.0,112050.0,0.02193882]
[1756926723778,1.05090794,112060.0,112050.0,0.02193882]
[1756926723898,1.20018794,112060.0,112050.0,0.02193882]
[1756926725288,0.56835616,112060.0,112050.0,0.02213882]
[1756926725497,0.55407237,112060.0,112050.0,0.2028617]
[1756926725704,0.37559656,112060.0,112050.0,0.34991056]
[1756926725907,0.03559656,112060.0,112050.0,0.34991056]
[1756926726266,0.37559656,112060.0,112050.0,0.34991056]
[1756926727754,0.55407237,112060.0,112050.0,0.34991056]
[1756926728179,0.37559656,112060.0,112050.0,0.34991056]
[1756926729507,0.55407237,112060.0,112050.0,0.34991056]
[1756926729715,0.55407237,112060.0,112050.0,0.20063056]
[1756926729871,1.04179415,112060.0,112050.0,0.02193882]
[1756926731882,1.19107415,112060.0,112050.0,0.02193882]
[1756926735979,1.19107415,112060.0,112050.0,0.001]
[1756926736834,1.39933613,112060.0,112050.0,0.001]
[1756926739670,1.27440915,112060.0,112050.0,0.001]
[1756926739901,1.33177316,112060.0,112050.0,0.001]
[1756926740616,1.18249316,112060.0,112050.0,0.001]
[1756926740825,1.33177316,112060.0,112050.0,0.001]
[1756926741001,1.37108182,112060.0,112050.0,0.001]
[1756926741381,1.22180182,112060.0,112050.0,0.001]
[1756926741583,1.97432706,112060.0,112050.0,0.001]
[1756926746521,1.28310705,112060.0,112050.0,0.02213882]
[1756926746731,1.28310705,112060.0,112050.0,0.02193882]
[1756926746732,1.43234705,112060.0,112050.0,0.02193882]
[1756926747136,1.28310705,112060.0,112050.0,0.20043056]
[1756926747371,1.43234705,112060.0,112050.0,0.20043056]
[1756926748258,1.28310705,112060.0,112050.0,0.20043056]
[1756926748440,1.43234705,112060.0,112050.0,0.20043056]
[1756926749633,1.28310705,112060.0,112050.0,0.20043056]
[1756926749867,1.43234705,112060.0,112050.0,0.20043056]
[1756926750050,1.43234705,112060.0,112050.0,0.02193882]
[1756926750763,1.88619538,112060.0,112050.0,0.001]
[1756926757071,1.73695538,112060.0,112050.0,0.001]
[1756926757252,1.52426304,112060.0,112050.0,0.001]
[1756926757449,1.42717705,112060.0,112050.0,0.02213882]
[1756926757624,1.27793705,112060.0,112050.0,0.02213882]
[1756926757831,1.43018705,112060.0,112050.0,0.02213882]
[1756926758066,1.43234705,112060.0,112050.0,0.02213882]
[1756926758278,1.43234705,112060.0,112050.0,0.02193882]
[1756926761631,1.52426304,112060.0,112050.0,0.001]
[1756926766538,1.88619538,112060.0,112050.0,0.001]
[1756926767144,1.97811137,112060.0,112050.0,0.001]
[1756926767759,0.17850767,112040.0,112030.0,0.02107994]
[1756926767984,1.05383882,112040.0,112030.0,0.02107994]
[1756926768321,1.05161235,112040.0,112030.0,0.02127994]
[1756926768547,1.07844554,112040.0,112030.0,0.02127994]
[1756926768760,1.08153554,112040.0,112030.0,0.02127994]
[1756926769682,1.08153554,112040.0,112030.0,0.02427994]
[1756926769895,1.08153554,112040.0,112030.0,0.02127994]
[1756926770107,1.08153554,112040.0,112030.0,0.02227994]
[1756926773873,1.08359554,112040.0,112030.0,0.02227994]
[1756926774372,1.08153554,112040.0,112030.0,0.02227994]
[1756926774618,1.08359554,112040.0,112030.0,0.02227994]
[1756926776079,0.93229554,112040.0,112030.0,0.20080354]
[1756926776282,0.7164732,112040.0,112030.0,0.02227994]
[1756926776969,0.7195632,112040.0,112030.0,0.02227994]
[1756926778351,1.08149554,112040.0,112030.0,0.02227994]
[1756926778580,1.08355554,112040.0,112030.0,0.02227994]
[1756926778790,1.08355554,112040.0,112030.0,0.02207994]
[1756926785694,1.08149554,112040.0,112030.0,0.20080354]
[1756926785860,1.08149554,112040.0,112030.0,0.02227994]
[1756926786206,0.93435554,112040.0,112030.0,0.02227994]
[1756926786412,1.08355554,112040.0,112030.0,0.02227994]
[1756926786686,0.7216232,112040.0,112030.0,0.02227994]
[1756926787468,0.7216232,112040.0,112030.0,0.02207994]
[1756926789410,0.7215832,112040.0,112030.0,0.02207994]
[1756926789837,1.08351554,112040.0,112030.0,0.02207994]
[1756926791658,1.08351554,112040.0,112020.0,0.0004]
[1756926791659,0.5185236,112030.0,112020.0,0.0004]
[1756926791883,1.69623661,112030.0,112020.0,0.0004]
[1756926792219,1.69623661,112030.0,112020.0,0.00044704]
[1756926792220,1.89882963,112030.0,112020.0,0.00044704]
[1756926792424,1.53689729,112030.0,112020.0,0.00044704]
[1756926792632,1.54047607,112030.0,112020.0,0.00044704]
[1756926793056,1.51612305,112030.0,112020.0,0.00044704]
[1756926793408,1.51612305,112030.0,112020.0,0.00144704]
[1756926793754,1.51612305,112030.0,112020.0,0.00044704]
[1756926793986,1.51712305,112030.0,112020.0,0.00044704]
[1756926794570,1.51912305,112030.0,112020.0,0.00044704]
[1756926795540,1.36996305,112030.0,112020.0,0.00044704]
[1756926796065,1.82381138,112030.0,112020.0,0.00044704]
[1756926796264,1.97297138,112030.0,112020.0,0.00044704]
[1756926796911,1.61107904,112030.0,112020.0,0.00044704]
[1756926797268,1.51916305,112030.0,112020.0,0.00044704]
[1756926799666,1.36996305,112030.0,112020.0,0.00044704]
[1756926799873,0.62232837,112030.0,112020.0,0.00044704]
[1756926800084,0.98426071,112030.0,112020.0,0.00044704]
[1756926800459,1.13346071,112030.0,112020.0,0.00044704]
[1756926801289,1.34619305,112030.0,112020.0,0.00044704]
[1756926801634,1.2542715,112030.0,112020.0,0.00044704]
[1756926802422,1.1050715,112030.0,112020.0,0.00044704]
[1756926802659,1.2542715,112030.0,112020.0,0.00044704]
[1756926804358,1.1050715,112030.0,112020.0,0.00044704]
[1756926804559,1.2542715,112030.0,112020.0,0.00044704]
[1756926806890,0.77152837,112030.0,112020.0,0.00044704]
[1756926807110,1.2542715,112030.0,112020.0,0.00044704]
[1756926808532,1.1050715,112030.0,112020.0,0.00044704]
[1756926808737,1.2542315,112030.0,112020.0,0.00044704]
[1756926810327,1.01315551,112030.0,112020.0,0.02138586]
[1756926810549,1.16231551,112030.0,112020.0,0.02138586]
[1756926811884,0.67957238,112030.0,112020.0,0.02138586]
[1756926814329,1.16231551,112030.0,112020.0,0.02138586]
[1756926814724,0.67957238,112030.0,112020.0,0.02138586]
[1756926814985,1.16231551,112030.0,112020.0,0.02138586]
[1756926815549,1.01315551,112030.0,112020.0,0.02138586]
[1756926815750,1.16231551,112030.0,112020.0,0.02138586]
[1756926820565,0.67957238,112030.0,112020.0,0.02138586]
[1756926820977,1.16231551,112030.0,112020.0,0.02138586]
[1756926825011,0.67957238,112030.0,112020.0,0.02138586]
[1756926825176,1.16231551,112030.0,112020.0,0.02138586]
[1756926825366,1.01315551,112030.0,112020.0,0.02138586]
[1756926825720,1.16231551,112030.0,112020.0,0.02138586]
[1756926827695,1.01315551,112030.0,112020.0,0.02138586]
[1756926827902,1.16231551,112030.0,112020.0,0.02138586]
[1756926828095,1.16231551,112030.0,112020.0,0.01638586]
[1756926828582,1.01315551,112030.0,112020.0,0.01638586]
[1756926828772,1.16227551,112030.0,112020.0,0.01638586]
[1756926833759,1.16227551,112030.0,112010.0,0.0004]
[1756926833963,1.15262914,112020.0,112010.0,0.02133882]
[1756926834205,1.15040267,112020.0,112010.0,0.02133882]
[1756926834419,1.15250267,112020.0,112010.0,0.02133882]
[1756926834623,1.15558267,112020.0,112010.0,0.02133882]
[1756926834824,1.18242179,112020.0,112010.0,0.02133882]
[1756926836236,1.18342179,112020.0,112010.0,0.02133882]
[1756926838507,1.18342179,112020.0,112010.0,0.0004]
[1756926843195,1.03430179,112020.0,112010.0,0.0004]
[1756926843396,1.18342179,112020.0,112010.0,0.0004]
[1756926844734,1.03430179,112020.0,112010.0,0.0004]
[1756926844863,1.18342179,112020.0,112010.0,0.0004]
[1756926845759,1.25206179,112020.0,112010.0,0.0004]
[1756926846158,1.10294179,112020.0,112010.0,0.0004]
[1756926846363,1.25206179,112020.0,112010.0,0.0004]
[1756926846576,1.10294179,112020.0,112010.0,0.0004]
[1756926846776,1.25206179,112020.0,112010.0,0.0004]
[1756926849146,1.43589377,112020.0,112010.0,0.0004]
[1756926849345,1.48586446,112020.0,112010.0,0.0004]
[1756926849759,1.50856446,112020.0,112010.0,0.0004]
[1756926852342,0.18090548,112010.0,112000.0,0.0004]
[1756926852519,0.93027825,112010.0,112000.0,0.0004]
[1756926852743,0.93526825,112010.0,112000.0,0.0004]
[1756926853441,0.96211207,112010.0,112000.0,0.0004]
[1756926853642,0.96211207,112010.0,112000.0,0.0014]
[1756926859472,0.95976207,112010.0,112000.0,0.0014]
[1756926860717,0.44643529,112010.0,112000.0,0.0016]
[1756926860898,0.92917842,112010.0,112000.0,0.0016]
[1756926861124,0.93416842,112010.0,112000.0,0.0014]
[1756926863579,1.17579621,112010.0,112000.0,0.0014]
[1756926866967,1.02667621,112010.0,112000.0,0.0014]
[1756926867188,1.17575621,112010.0,112000.0,0.0014]
[1756926867320,1.02667621,112010.0,112000.0,0.0014]
[1756926867524,1.17575621,112010.0,112000.0,0.0014]
[1756926869085,0.3575093,112010.0,112000.0,0.02253882]
[1756926869321,0.71666476,112010.0,112000.0,0.02253882]
[1756926870202,0.71969476,112010.0,112000.0,0.02253882]
[1756926870420,0.57061476,112010.0,112000.0,0.02253882]
[1756926870589,0.71969476,112010.0,112000.0,0.02253882]
[1756926870771,0.57061476,112010.0,112000.0,0.02253882]
[1756926870953,0.71969476,112010.0,112000.0,0.02253882]
[1756926871636,0.72165476,112010.0,112000.0,0.02018882]
[1756926872434,0.3594693,112010.0,112000.0,0.02018882]
[1756926872639,0.72165476,112010.0,112000.0,0.02018882]
[1756926879618,0.57061476,112010.0,112000.0,0.02018882]
[1756926879860,0.71969476,112010.0,112000.0,0.02018882]
[1756926879999,0.72168476,112010.0,112000.0,0.02018882]
[1756926884802,0.72168476,112010.0,111990.0,0.0004]
[1756926884803,0.51857142,112000.0,111990.0,0.0004]
[1756926884991,1.39198234,112000.0,111990.0,0.02133882]
[1756926885196,0.66960142,112000.0,111990.0,0.02133882]
[1756926885401,1.42377537,112000.0,111990.0,0.02133882]
[1756926885974,1.43280235,112000.0,111990.0,0.02133882]
[1756926886435,1.43280235,112000.0,111990.0,0.02233882]
[1756926886685,1.43280235,112000.0,111990.0,0.02433882]
[1756926887293,0.70843143,112000.0,111990.0,0.02433882]
[1756926887437,1.43280235,112000.0,111990.0,0.02433882]
[1756926891185,1.28376235,112000.0,111990.0,0.02433882]
[1756926891366,1.43280235,112000.0,111990.0,0.02433882]
[1756926893950,0.70843143,112000.0,111990.0,0.02433882]
[1756926894174,1.43280235,112000.0,111990.0,0.02433882]
[1756926898032,1.28376235,112000.0,111990.0,0.02433882]
[1756926898242,1.43280235,112000.0,111990.0,0.02433882]
[1756926898790,1.28376235,112000.0,111990.0,0.02433882]
[1756926898922,1.43280235,112000.0,111990.0,0.02433882]
[1756926905611,1.28376235,112000.0,111990.0,0.02433882]
[1756926906035,1.43276235,112000.0,111990.0,0.02433882]
[1756926906815,0.73805547,112000.0,111990.0,0.20515853]
[1756926907023,0.73805547,112000.0,111990.0,0.20292619]
[1756926907421,0.37587001,112000.0,111990.0,0.20292619]
[1756926907619,0.88705547,112000.0,111990.0,0.20292619]
[1756926907823,0.37587001,112000.0,111990.0,0.20292619]
[1756926908027,0.02684303,112000.0,111990.0,0.65702764]
[1756926910657,0.02684303,112000.0,111990.0,0.29484218]
[1756926910883,0.20541445,112000.0,111990.0,0.29484218]
[1756926911292,0.56759991,112000.0,111990.0,0.29484218]
[1756926912667,0.38902849,112000.0,111990.0,0.29484218]
[1756926912869,0.56759991,112000.0,111990.0,0.29484218]
[1756926913082,0.57074991,112000.0,111990.0,0.29484218]
[1756926914778,0.56759991,112000.0,111990.0,0.29484218]
[1756926915618,0.39217849,112000.0,111990.0,0.29484218]
[1756926915830,0.57074991,112000.0,111990.0,0.44384218]
[1756926916872,0.54117849,112000.0,111990.0,0.44384218]
[1756926916991,0.71974991,112000.0,111990.0,0.44384218]
[1756926918985,0.54117849,112000.0,111990.0,0.44384218]
[1756926921497,0.72185991,112000.0,111990.0,0.29484218]
[1756926921714,1.08404537,112000.0,111990.0,0.02433882]
[1756926921948,1.42404537,112000.0,111990.0,0.02433882]
[1756926925237,1.42404537,112000.0,111990.0,0.20292619]
[1756926925680,0.69967445,112000.0,111990.0,0.20292619]
[1756926925915,1.18254155,112000.0,111990.0,0.20292619]
[1756926928732,0.36991723,112000.0,111990.0,0.20292619]
[1756926928950,1.18035575,112000.0,111990.0,0.20292619]
[1756926931558,1.18035575,112000.0,111990.0,0.02433882]
[1756926931735,1.18035575,112000.0,111990.0,0.02657116]
[1756926934872,1.18035575,112000.0,111990.0,0.20515853]
[1756926935155,1.18035575,112000.0,111990.0,0.20292619]
[1756926935709,1.03139575,112000.0,111990.0,0.20292619]
[1756926935920,1.18035575,112000.0,111990.0,0.20292619]
[1756926939424,1.18035575,112000.0,111990.0,0.02433882]
[1756926948743,1.03139575,112000.0,111990.0,0.02433882]
[1756926948950,1.18035575,112000.0,111990.0,0.02433882]
[1756926954613,1.03139575,112000.0,111990.0,0.02433882]
[1756926954817,1.18035575,112000.0,111990.0,0.02433882]
[1756926955527,1.03139575,112000.0,111990.0,0.02433882]
[1756926955770,1.18035575,112000.0,111990.0,0.02433882]
[1756926958426,1.03139575,112000.0,111990.0,0.02433882]
[1756926958641,1.18031575,112000.0,111990.0,0.02433882]
[1756926960533,1.03139575,112000.0,111990.0,0.02433882]
[1756926960747,1.18031575,112000.0,111990.0,0.02433882]
[1756926961032,1.03139575,112000.0,111990.0,0.02433882]
[1756926961305,1.18031575,112000.0,111990.0,0.02433882]
[1756926961751,1.03139575,112000.0,111990.0,0.02433882]
[1756926961956,1.18031575,112000.0,111990.0,0.02433882]
[1756926965923,1.03139575,112000.0,111990.0,0.02433882]
[1756926966150,0.54322865,112000.0,111990.0,0.20515853]
[1756926966357,0.69214865,112000.0,111990.0,0.20292619]
[1756926967192,0.69531865,112000.0,111990.0,0.20292619]
[1756926967916,0.54639865,112000.0,111990.0,0.20292619]
[1756926968326,0.69531865,112000.0,111990.0,0.20292619]
[1756926968813,0.69743865,112000.0,111990.0,0.20292619]
[1756926969025,1.18034575,112000.0,111990.0,0.02433882]
[1756926969216,1.18034575,112000.0,111990.0,0.02657116]
[1756926969424,1.18034575,112000.0,111990.0,0.20515853]
[1756926969658,1.18034575,112000.0,111990.0,0.20292619]
[1756926969850,1.18034575,112000.0,111990.0,0.02433882]
[1756926970132,1.18034575,112000.0,111990.0,0.02657116]
[1756926970339,1.18034575,112000.0,111990.0,0.02433882]
[1756926977874,1.03142575,112000.0,111990.0,0.02433882]
[1756926978088,1.18034575,112000.0,111990.0,0.02433882]
[1756926981417,1.18034575,112000.0,111990.0,0.20292619]
[1756926982210,1.18034575,112000.0,111990.0,0.02433882]
[1756926985641,1.42183071,112000.0,111990.0,0.02433882]
[1756926985857,1.42183071,112000.0,111990.0,0.02657116]
[1756926987158,1.42183071,112000.0,111990.0,0.02433882]
[1756926987385,0.69743865,112000.0,111990.0,0.02433882]
[1756926987593,1.42183071,112000.0,111990.0,0.02433882]
[1756926988229,2.04186929,112000.0,111990.0,0.0034]
[1756926988464,1.9499533,112000.0,111990.0,0.0034]
[1756926990016,1.9499533,112000.0,111990.0,0.0004]
[1756926990223,1.9509533,112000.0,111990.0,0.0004]
[1756926990427,1.9499533,112000.0,111990.0,0.0004]
[1756926990727,1.9519533,112000.0,111990.0,0.0004]
[1756926990907,1.9539533,112000.0,111990.0,0.0004]
[1756926993875,2.04586929,112000.0,111990.0,0.0004]
[1756926994306,3.18245738,112000.0,111990.0,1e-08]
[1756926994516,0.22932793,111990.0,111980.0,0.5004]
[1756926994724,1.26527598,111990.0,111980.0,0.5004]
[1756926994927,1.26846598,111990.0,111980.0,0.5004]
[1756926995128,1.38723209,111990.0,111980.0,0.5004]
[1756926995742,2.11269812,111990.0,111980.0,0.5008689]
[1756926996560,2.11369812,111990.0,111980.0,0.5008689]
[1756926996760,1.96481812,111990.0,111980.0,0.5008689]
[1756926996967,2.11369812,111990.0,111980.0,0.5008689]
[1756926997377,2.15416813,111990.0,111980.0,0.5008689]
[1756927002272,2.00528813,111990.0,111980.0,0.5008689]
[1756927002424,2.15420813,111990.0,111980.0,0.5008689]
[1756927002629,2.00528813,111990.0,111980.0,0.5008689]
[1756927002978,2.15420813,111990.0,111980.0,0.5008689]
[1756927003743,2.15320813,111990.0,111980.0,0.5008689]
[1756927003957,2.00328813,111990.0,111980.0,0.5008689]
[1756927004197,2.15620813,111990.0,111980.0,0.5008689]
[1756927004398,2.00728813,111990.0,111980.0,0.5008689]
[1756927004730,2.15620813,111990.0,111980.0,0.5008689]
[1756927004939,2.00728813,111990.0,111980.0,0.5008689]
[1756927005131,2.15620813,111990.0,111980.0,0.5008689]
[1756927007484,2.00728813,111990.0,111980.0,0.5008689]
[1756927007682,2.11673812,111990.0,111980.0,0.5008689]
[1756927009159,2.09346812,111990.0,111980.0,0.5008689]
[1756927009812,1.94454812,111990.0,111980.0,0.5008689]
[1756927010028,2.09346812,111990.0,111980.0,0.5008689]
[1756927010438,1.94454812,111990.0,111980.0,0.5008689]
[1756927010648,2.09346812,111990.0,111980.0,0.5008689]
[1756927013428,1.94454812,111990.0,111980.0,0.5008689]
[1756927013630,2.09346812,111990.0,111980.0,0.5008689]
[1756927014602,1.73127209,111990.0,111980.0,0.5008689]
[1756927015122,1.58235209,111990.0,111980.0,0.5008689]
[1756927015365,1.73127209,111990.0,111980.0,0.5008689]
[1756927022617,1.45931664,111990.0,111980.0,0.5008689]
[1756927022806,1.60823664,111990.0,111980.0,0.5008689]
[1756927023013,0.61807749,111990.0,111980.0,0.5008689]
[1756927023225,0.78915352,111990.0,111980.0,0.5008689]
[1756927023426,1.12915352,111990.0,111980.0,0.5008689]
[1756927025217,0.98027352,111990.0,111980.0,0.5008689]
[1756927025425,1.12915352,111990.0,111980.0,0.5008689]
[1756927025843,0.98027352,111990.0,111980.0,0.5008689]
[1756927026063,1.12915352,111990.0,111980.0,0.5008689]
[1756927027173,0.98027352,111990.0,111980.0,0.5008689]
[1756927027380,1.12915352,111990.0,111980.0,0.5008689]
[1756927027583,0.98027352,111990.0,111980.0,0.5008689]
[1756927027761,1.12915352,111990.0,111980.0,0.5008689]
[1756927030646,0.98027352,111990.0,111980.0,0.5008689]
[1756927030817,1.12915352,111990.0,111980.0,0.5008689]
[1756927032819,1.49656955,111990.0,111980.0,0.5008689]
[1756927042646,0.77217749,111990.0,111980.0,0.5008689]
[1756927042861,1.49656955,111990.0,111980.0,0.5008689]
[1756927044138,1.7311421,111990.0,111980.0,0.5008689]
[1756927047665,1.48996573,111990.0,111980.0,0.5008689]
[1756927054410,1.43922516,111990.0,111980.0,0.5008689]
[1756927054624,1.48996573,111990.0,111980.0,0.5008689]
[1756927056911,1.48992573,111990.0,111980.0,0.5008689]
[1756927057438,1.34108573,111990.0,111980.0,0.5008689]